[Event "*** Titled Tuesday Blitz"]
[Site "Chess.com"]
[Date "2019.06.04"]
[Round "9"]
[White "VeraNebolsina"]
[Black "Spring199"]
[Result "1-0"]
[WhiteElo "2365"]
[BlackElo "2217"]
[TimeControl "180+2"]
[EndTime "15:07:43 PDT"]
[Termination "VeraNebolsina won by resignation"]

1. e4 {[%clk 0:03:01.9]} 1... e5 {[%clk 0:03:00.4]} 2. Nf3 {[%clk 0:03:02.2]}
2... Nc6 {[%clk 0:03:01]} 3. Bb5 {[%clk 0:02:59.9]} 3... a6 {[%clk 0:03:01.5]}
4. Ba4 {[%clk 0:03:00.1]} 4... Nf6 {[%clk 0:03:02.7]} 5. O-O {[%clk 0:03:00.3]}
5... Be7 {[%clk 0:03:01.5]} 6. Re1 {[%clk 0:02:46.9]} 6... b5 {[%clk 0:03:01.7]}
7. Bb3 {[%clk 0:02:47.2]} 7... O-O {[%clk 0:03:03.6]} 8. c3 {[%clk 0:02:45.3]}
8... d5 {[%clk 0:03:02.3]} 9. d4 {[%clk 0:02:45]} 9... exd4 {[%clk 0:02:52]} 10.
e5 {[%clk 0:02:43.8]} 10... Ne4 {[%clk 0:02:51.9]} 11. cxd4 {[%clk 0:02:37.8]}
11... Bg4 {[%clk 0:02:51.5]} 12. Be3 {[%clk 0:02:31.3]} 12... Bb4 {[%clk
0:02:45.7]} 13. Rf1 {[%clk 0:02:22.3]} 13... f6 {[%clk 0:02:30.5]} 14. Qc2
{[%clk 0:02:15.1]} 14... Na5 {[%clk 0:01:55.3]} 15. Qxe4 {[%clk 0:01:44.3]}
15... Nxb3 {[%clk 0:01:55.1]} 16. Qxg4 {[%clk 0:01:44.6]} 16... Nxa1 {[%clk
0:01:53.7]} 17. Rc1 {[%clk 0:01:40.2]} 17... f5 {[%clk 0:01:42.6]} 18. Qg3
{[%clk 0:01:33.7]} 18... Qd7 {[%clk 0:01:30.9]} 19. Nc3 {[%clk 0:01:21.7]} 19...
Bxc3 {[%clk 0:01:05.6]} 20. bxc3 {[%clk 0:01:22.4]} 20... f4 {[%clk 0:00:45.6]}
21. Bxf4 {[%clk 0:01:22.9]} 21... Qf5 {[%clk 0:00:41.1]} 22. Bh6 {[%clk
0:01:17.3]} 22... Rf7 {[%clk 0:00:33.1]} 23. Rxa1 {[%clk 0:01:15.2]} 23... Re8
{[%clk 0:00:24.7]} 24. h3 {[%clk 0:00:56.9]} 24... Re6 {[%clk 0:00:24.8]} 25.
Be3 {[%clk 0:00:50.6]} 25... Rg6 {[%clk 0:00:23.2]} 26. Nh4 {[%clk 0:00:46.3]}
26... Rxg3 {[%clk 0:00:18.8]} 27. Nxf5 {[%clk 0:00:46.3]} 27... Rg6 {[%clk
0:00:17.6]} 28. Nh4 {[%clk 0:00:41.2]} 28... Rc6 {[%clk 0:00:18.5]} 29. Bd2
{[%clk 0:00:40.9]} 29... Rc4 {[%clk 0:00:18.4]} 30. Nf3 {[%clk 0:00:38.2]} 30...
Re7 {[%clk 0:00:18.6]} 31. Kf1 {[%clk 0:00:33.1]} 31... h6 {[%clk 0:00:19.4]}
32. Ke2 {[%clk 0:00:33.4]} 32... Kf7 {[%clk 0:00:20.6]} 33. Kd3 {[%clk 0:00:34]}
33... Re6 {[%clk 0:00:20.1]} 34. Ne1 {[%clk 0:00:33.2]} 34... Rec6 {[%clk
0:00:19.8]} 35. Nc2 {[%clk 0:00:33.4]} 35... Ra4 {[%clk 0:00:16.2]} 36. Nb4
{[%clk 0:00:32.3]} 36... Rg6 {[%clk 0:00:16.4]} 37. g4 {[%clk 0:00:27.2]} 37...
c6 {[%clk 0:00:16.6]} 38. f4 {[%clk 0:00:27.3]} 38... c5 {[%clk 0:00:12.1]} 39.
dxc5 {[%clk 0:00:20.8]} 39... a5 {[%clk 0:00:12.4]} 40. f5 {[%clk 0:00:20.7]}
40... axb4 {[%clk 0:00:06]} 41. fxg6+ {[%clk 0:00:21.2]} 41... Kxg6 {[%clk
0:00:07.9]} 42. cxb4 {[%clk 0:00:22.4]} 42... Ra3+ {[%clk 0:00:08.5]} 43. Bc3
{[%clk 0:00:23.2]} 43... Kg5 {[%clk 0:00:08.3]} 44. Kd4 {[%clk 0:00:21.8]} 44...
h5 {[%clk 0:00:06.5]} 45. gxh5 {[%clk 0:00:21.8]} 45... Kxh5 {[%clk 0:00:07.6]}
46. e6 {[%clk 0:00:23.2]} 1-0

[Event "*** Titled Tuesday Blitz"]
[Site "Chess.com"]
[Date "2019.06.04"]
[Round "9"]
[White "europa2012"]
[Black "el-reptiliano"]
[Result "1/2-1/2"]
[WhiteElo "2160"]
[BlackElo "2204"]
[TimeControl "180+2"]
[EndTime "15:07:44 PDT"]
[Termination "Game drawn by repetition"]

1. d4 {[%clk 0:03:01.9]} 1... d5 {[%clk 0:02:57.8]} 2. c4 {[%clk 0:03:03]} 2...
dxc4 {[%clk 0:02:59.7]} 3. e3 {[%clk 0:03:04]} 3... e5 {[%clk 0:02:58.4]} 4.
Bxc4 {[%clk 0:03:03.6]} 4... Nc6 {[%clk 0:02:57.2]} 5. Nf3 {[%clk 0:03:01.5]}
5... exd4 {[%clk 0:02:55.9]} 6. exd4 {[%clk 0:03:01.8]} 6... Bb4+ {[%clk
0:02:50]} 7. Nc3 {[%clk 0:03:02.1]} 7... Nf6 {[%clk 0:02:44]} 8. O-O {[%clk
0:03:02.4]} 8... O-O {[%clk 0:02:39.2]} 9. h3 {[%clk 0:03:00.6]} 9... h6 {[%clk
0:02:37]} 10. Be3 {[%clk 0:02:57.9]} 10... Bf5 {[%clk 0:02:34.5]} 11. a3 {[%clk
0:02:57.6]} 11... Bxc3 {[%clk 0:02:34.7]} 12. bxc3 {[%clk 0:02:58.5]} 12... Nd5
{[%clk 0:02:24.4]} 13. Qd2 {[%clk 0:02:42.7]} 13... Nb6 {[%clk 0:02:17.8]} 14.
Ba2 {[%clk 0:02:38.2]} 14... Na5 {[%clk 0:02:13.8]} 15. Ne5 {[%clk 0:02:37]}
15... Be6 {[%clk 0:02:10.9]} 16. Bxe6 {[%clk 0:02:35.1]} 16... fxe6 {[%clk
0:02:12.8]} 17. Qd3 {[%clk 0:02:27]} 17... Rf5 {[%clk 0:01:47.4]} 18. Qe4 {[%clk
0:02:13.5]} 18... Nd5 {[%clk 0:01:42.7]} 19. Ng4 {[%clk 0:02:07.6]} 19... Qd7
{[%clk 0:01:33.5]} 20. Ne5 {[%clk 0:01:56.9]} 20... Qe8 {[%clk 0:01:15.2]} 21.
Rac1 {[%clk 0:01:53.6]} 21... c5 {[%clk 0:01:13]} 22. c4 {[%clk 0:01:44.7]}
22... Nf6 {[%clk 0:00:58.7]} 23. Qc2 {[%clk 0:01:44.1]} 23... cxd4 {[%clk
0:00:46.2]} 24. Bxd4 {[%clk 0:01:45.3]} 24... Rc8 {[%clk 0:00:47.7]} 25. Qc3
{[%clk 0:01:26.9]} 25... b6 {[%clk 0:00:36.4]} 26. f4 {[%clk 0:01:08.7]} 26...
Ne4 {[%clk 0:00:28.4]} 27. Qe3 {[%clk 0:01:08.7]} 27... Nd6 {[%clk 0:00:28.2]}
28. c5 {[%clk 0:01:01.1]} 28... bxc5 {[%clk 0:00:18.6]} 29. Bxc5 {[%clk
0:01:00.5]} 29... Nf7 {[%clk 0:00:19.4]} 30. Bxa7 {[%clk 0:00:52.8]} 30... Rxc1
{[%clk 0:00:20.9]} 31. Rxc1 {[%clk 0:00:52.4]} 31... Nxe5 {[%clk 0:00:22.5]} 32.
fxe5 {[%clk 0:00:53.2]} 32... Nc6 {[%clk 0:00:23.6]} 33. Bd4 {[%clk 0:00:48.6]}
33... Qd7 {[%clk 0:00:24.4]} 34. Rd1 {[%clk 0:00:33.1]} 34... Rxe5 {[%clk
0:00:18.2]} 35. Bxe5 {[%clk 0:00:28.2]} 35... Qxd1+ {[%clk 0:00:18.7]} 36. Kh2
{[%clk 0:00:29.9]} 36... Qd5 {[%clk 0:00:18.6]} 37. Bc3 {[%clk 0:00:24.9]} 37...
e5 {[%clk 0:00:18.9]} 38. Qb6 {[%clk 0:00:21.5]} 38... Qd6 {[%clk 0:00:15.2]}
39. Bb4 {[%clk 0:00:20.2]} 39... Qf6 {[%clk 0:00:13]} 40. Qe3 {[%clk 0:00:13.7]}
40... Nd4 {[%clk 0:00:12.2]} 41. Bc3 {[%clk 0:00:11.9]} 41... Nc6 {[%clk
0:00:12.1]} 42. Bb4 {[%clk 0:00:12.5]} 42... Qg6 {[%clk 0:00:09.1]} 43. Bc3
{[%clk 0:00:11.3]} 43... e4 {[%clk 0:00:09.5]} 44. a4 {[%clk 0:00:10]} 44... Qf5
{[%clk 0:00:08.1]} 45. a5 {[%clk 0:00:10.8]} 45... Nxa5 {[%clk 0:00:04]} 46.
Bxa5 {[%clk 0:00:12]} 46... Qxa5 {[%clk 0:00:05.6]} 47. Qxe4 {[%clk 0:00:13.6]}
47... Qc7+ {[%clk 0:00:06.9]} 48. Kg1 {[%clk 0:00:13.9]} 48... Qc1+ {[%clk
0:00:07.4]} 49. Kh2 {[%clk 0:00:15.4]} 49... Qc7+ {[%clk 0:00:08]} 50. Kg1
{[%clk 0:00:16.8]} 50... Qc1+ {[%clk 0:00:09.2]} 51. Kh2 {[%clk 0:00:18.3]}
51... Qc7+ {[%clk 0:00:10.3]} 1/2-1/2

[Event "*** Titled Tuesday Blitz"]
[Site "Chess.com"]
[Date "2019.06.04"]
[Round "9"]
[White "Jbd735"]
[Black "51616516516"]
[Result "1-0"]
[WhiteElo "2435"]
[BlackElo "2321"]
[TimeControl "180+2"]
[EndTime "15:07:50 PDT"]
[Termination "Jbd735 won on time"]

1. e4 {[%clk 0:03:01.9]} 1... c5 {[%clk 0:02:59.9]} 2. Nf3 {[%clk 0:03:02.1]}
2... g6 {[%clk 0:03:00.6]} 3. c4 {[%clk 0:03:00.5]} 3... Nc6 {[%clk 0:03:00.7]}
4. d4 {[%clk 0:02:59.3]} 4... cxd4 {[%clk 0:03:02.1]} 5. Nxd4 {[%clk 0:03:00.7]}
5... Nf6 {[%clk 0:03:03.5]} 6. Nc3 {[%clk 0:03:01]} 6... d6 {[%clk 0:03:05]} 7.
Be2 {[%clk 0:02:59.9]} 7... Bg7 {[%clk 0:03:03.5]} 8. Be3 {[%clk 0:02:59.5]}
8... O-O {[%clk 0:02:58.1]} 9. Nc2 {[%clk 0:02:53.5]} 9... Nd7 {[%clk
0:02:54.7]} 10. O-O {[%clk 0:02:49]} 10... Nc5 {[%clk 0:02:54.9]} 11. f3 {[%clk
0:02:44.4]} 11... f5 {[%clk 0:02:50]} 12. exf5 {[%clk 0:01:58.2]} 12... Bxf5
{[%clk 0:02:51.9]} 13. Qd2 {[%clk 0:01:56.2]} 13... a5 {[%clk 0:02:18.5]} 14.
Rac1 {[%clk 0:01:43.8]} 14... a4 {[%clk 0:01:56.5]} 15. Nd4 {[%clk 0:01:29.7]}
15... Nxd4 {[%clk 0:01:52.2]} 16. Bxd4 {[%clk 0:01:31.6]} 16... Bxd4+ {[%clk
0:01:48.5]} 17. Qxd4 {[%clk 0:01:33.5]} 17... e5 {[%clk 0:01:48.8]} 18. Qe3
{[%clk 0:01:18.2]} 18... Be6 {[%clk 0:01:44.7]} 19. Rfd1 {[%clk 0:01:17.8]}
19... Ra6 {[%clk 0:01:34.4]} 20. Rd2 {[%clk 0:01:15.4]} 20... Qh4 {[%clk
0:01:34]} 21. Nb5 {[%clk 0:01:08.8]} 21... Rd8 {[%clk 0:01:25.8]} 22. g3 {[%clk
0:00:55]} 22... Qe7 {[%clk 0:01:23.6]} 23. Rcd1 {[%clk 0:00:53.4]} 23... Rb6
{[%clk 0:01:15.2]} 24. Nxd6 {[%clk 0:00:45.1]} 24... Nd7 {[%clk 0:00:08.1]} 25.
Ne4 {[%clk 0:00:37.2]} 25... Rc6 {[%clk 0:00:08.9]} 26. b3 {[%clk 0:00:36]}
26... axb3 {[%clk 0:00:09.1]} 27. axb3 {[%clk 0:00:37.9]} 27... Rf8 {[%clk
0:00:10.4]} 28. Qg5 {[%clk 0:00:35.2]} 28... Qxg5 {[%clk 0:00:08.1]} 29. Nxg5
{[%clk 0:00:37.1]} 29... Nc5 {[%clk 0:00:09.7]} 30. Rd6 {[%clk 0:00:25.2]} 30...
Bf5 {[%clk 0:00:05]} 31. b4 {[%clk 0:00:20.6]} 31... Na4 {[%clk 0:00:04]} 32. c5
{[%clk 0:00:18]} 32... Nc3 {[%clk 0:00:04.3]} 33. Bc4+ {[%clk 0:00:17.6]} 33...
Kh8 {[%clk 0:00:03.7]} 34. Rxc6 {[%clk 0:00:17.9]} 34... bxc6 {[%clk 0:00:04.1]}
35. Rd8 {[%clk 0:00:16.5]} 35... Rxd8 {[%clk 0:00:04.7]} 36. Nf7+ {[%clk
0:00:17.7]} 36... Kg7 {[%clk 0:00:06.6]} 37. Nxd8 {[%clk 0:00:19.5]} 37... e4
{[%clk 0:00:05.6]} 38. Nxc6 {[%clk 0:00:15]} 38... exf3 {[%clk 0:00:05.1]} 39.
Nd4 {[%clk 0:00:15]} 39... Be4 {[%clk 0:00:03.6]} 40. c6 {[%clk 0:00:15.3]}
40... Nd1 {[%clk 0:00:04.3]} 41. c7 {[%clk 0:00:06.8]} 41... f2+ {[%clk
0:00:05.1]} 42. Kf1 {[%clk 0:00:07.4]} 42... Bb7 {[%clk 0:00:06.6]} 43. Be2
{[%clk 0:00:05]} 43... h5 {[%clk 0:00:04.4]} 44. Bxd1 {[%clk 0:00:05.6]} 1-0

[Event "*** Titled Tuesday Blitz"]
[Site "Chess.com"]
[Date "2019.06.04"]
[Round "9"]
[White "slowdumbb"]
[Black "Slovak_fighter2000"]
[Result "1-0"]
[WhiteElo "2489"]
[BlackElo "2480"]
[TimeControl "180+2"]
[EndTime "15:07:51 PDT"]
[Termination "slowdumbb won by checkmate"]

1. g3 {[%clk 0:03:01.9]} 1... d5 {[%clk 0:03:00.3]} 2. Bg2 {[%clk 0:02:57.7]}
2... Nc6 {[%clk 0:03:00.5]} 3. d3 {[%clk 0:02:51.7]} 3... e5 {[%clk 0:03:00.8]}
4. Nf3 {[%clk 0:02:47]} 4... Nf6 {[%clk 0:02:59.7]} 5. O-O {[%clk 0:02:45.8]}
5... Be7 {[%clk 0:03:00]} 6. c4 {[%clk 0:02:41.1]} 6... O-O {[%clk 0:02:56.7]}
7. cxd5 {[%clk 0:02:41.1]} 7... Nxd5 {[%clk 0:02:58.6]} 8. Nc3 {[%clk
0:02:42.6]} 8... Be6 {[%clk 0:02:59]} 9. Bd2 {[%clk 0:02:31.5]} 9... Nb6 {[%clk
0:02:57.8]} 10. Rc1 {[%clk 0:02:25.2]} 10... Qd7 {[%clk 0:02:58]} 11. Ng5 {[%clk
0:02:19.2]} 11... Bxg5 {[%clk 0:02:56.6]} 12. Bxg5 {[%clk 0:02:21.1]} 12... Bh3
{[%clk 0:02:54.9]} 13. Ne4 {[%clk 0:02:17.2]} 13... Bxg2 {[%clk 0:02:54.1]} 14.
Kxg2 {[%clk 0:02:19.1]} 14... f6 {[%clk 0:02:50.7]} 15. Be3 {[%clk 0:02:09.9]}
15... Ne7 {[%clk 0:02:43.7]} 16. Qb3+ {[%clk 0:02:08.1]} 16... Qd5 {[%clk
0:02:38]} 17. Rxc7 {[%clk 0:01:53.3]} 17... Qxb3 {[%clk 0:02:26.8]} 18. axb3
{[%clk 0:01:53.8]} 18... Ned5 {[%clk 0:02:15.3]} 19. Rxb7 {[%clk 0:01:53.8]}
19... f5 {[%clk 0:02:15.2]} 20. Ng5 {[%clk 0:01:44.3]} 20... h6 {[%clk
0:02:00.5]} 21. Ne6 {[%clk 0:01:42.2]} 21... Rf7 {[%clk 0:02:01.4]} 22. Rxf7
{[%clk 0:01:27.2]} 22... Kxf7 {[%clk 0:02:03.3]} 23. Nc5 {[%clk 0:01:28.5]}
23... Rc8 {[%clk 0:02:00.8]} 24. d4 {[%clk 0:01:23.9]} 24... f4 {[%clk
0:01:40.6]} 25. gxf4 {[%clk 0:01:23.6]} 25... exd4 {[%clk 0:01:38.3]} 26. Bxd4
{[%clk 0:01:21.8]} 26... Nxf4+ {[%clk 0:01:39]} 27. Kf3 {[%clk 0:01:23.1]} 27...
g5 {[%clk 0:01:33.8]} 28. Ra1 {[%clk 0:01:17.3]} 28... Rc7 {[%clk 0:01:26.6]}
29. Ne4 {[%clk 0:01:08.5]} 29... Ne6 {[%clk 0:01:15.7]} 30. Bc3 {[%clk
0:00:59.9]} 30... Nd5 {[%clk 0:01:10.7]} 31. Nd6+ {[%clk 0:00:58.5]} 31... Kg6
{[%clk 0:01:07.1]} 32. Nb5 {[%clk 0:01:00.4]} 32... Rc5 {[%clk 0:01:07.3]} 33.
Nd4 {[%clk 0:00:46.7]} 33... Nef4 {[%clk 0:00:47.4]} 34. Ra6+ {[%clk 0:00:43]}
34... Kh5 {[%clk 0:00:41.8]} 35. Nf5 {[%clk 0:00:17.3]} 35... g4+ {[%clk
0:00:38.8]} 36. Ke4 {[%clk 0:00:17.2]} 36... Kg5 {[%clk 0:00:31]} 37. Ng7 {[%clk
0:00:11.2]} 37... Nxc3+ {[%clk 0:00:21.9]} 38. bxc3 {[%clk 0:00:13.1]} 38...
Nxe2 {[%clk 0:00:18.5]} 39. Ne6+ {[%clk 0:00:13.4]} 39... Kh4 {[%clk 0:00:19.1]}
40. Nxc5 {[%clk 0:00:15.3]} 40... Nxc3+ {[%clk 0:00:18]} 41. Kd3 {[%clk
0:00:14.1]} 41... Nd1 {[%clk 0:00:14.6]} 42. Rxa7 {[%clk 0:00:12.6]} 42... Nxf2+
{[%clk 0:00:15]} 43. Ke2 {[%clk 0:00:13.6]} 43... Nh3 {[%clk 0:00:14.6]} 44. Nd3
{[%clk 0:00:12.5]} 44... Ng5 {[%clk 0:00:14.1]} 45. b4 {[%clk 0:00:13.2]} 45...
Ne4 {[%clk 0:00:14.2]} 46. Ke3 {[%clk 0:00:14.2]} 46... Nc3 {[%clk 0:00:14.3]}
47. Nf4 {[%clk 0:00:08.6]} 47... h5 {[%clk 0:00:11.5]} 48. Ra5 {[%clk
0:00:07.3]} 48... g3 {[%clk 0:00:12.5]} 49. Rxh5+ {[%clk 0:00:06.7]} 49... Kg4
{[%clk 0:00:14]} 50. h3# {[%clk 0:00:08.2]} 1-0

[Event "*** Titled Tuesday Blitz"]
[Site "Chess.com"]
[Date "2019.06.04"]
[Round "9"]
[White "Gentlejimmy7"]
[Black "spicycaterpillar"]
[Result "0-1"]
[WhiteElo "2556"]
[BlackElo "2861"]
[TimeControl "180+2"]
[EndTime "15:07:55 PDT"]
[Termination "spicycaterpillar won by resignation"]

1. d4 {[%clk 0:02:59.7]} 1... Nf6 {[%clk 0:03:00.5]} 2. Nf3 {[%clk 0:03:01]}
2... g6 {[%clk 0:03:01.3]} 3. g3 {[%clk 0:03:02.3]} 3... Bg7 {[%clk 0:03:02.5]}
4. Bg2 {[%clk 0:03:04.2]} 4... O-O {[%clk 0:03:03]} 5. O-O {[%clk 0:03:06.1]}
5... d5 {[%clk 0:02:58.4]} 6. c4 {[%clk 0:03:06]} 6... dxc4 {[%clk 0:02:56.5]}
7. Na3 {[%clk 0:03:06.6]} 7... c3 {[%clk 0:02:52.1]} 8. bxc3 {[%clk 0:03:07]}
8... c5 {[%clk 0:02:53.6]} 9. Bb2 {[%clk 0:03:07.6]} 9... Nc6 {[%clk 0:02:33.6]}
10. Re1 {[%clk 0:03:06.9]} 10... Ne4 {[%clk 0:02:15.1]} 11. Ne5 {[%clk
0:02:50.7]} 11... Nxe5 {[%clk 0:01:42.7]} 12. Bxe4 {[%clk 0:02:50.7]} 12... Nc6
{[%clk 0:01:39.9]} 13. e3 {[%clk 0:02:23.1]} 13... Qc7 {[%clk 0:01:40.7]} 14.
Rb1 {[%clk 0:02:15]} 14... Rd8 {[%clk 0:01:41.1]} 15. Nb5 {[%clk 0:02:08.2]}
15... Qa5 {[%clk 0:01:32.7]} 16. Qb3 {[%clk 0:01:54.9]} 16... Bg4 {[%clk
0:01:04.9]} 17. Na3 {[%clk 0:01:40.4]} 17... Qc7 {[%clk 0:01:00.1]} 18. Ba1
{[%clk 0:01:31.8]} 18... b6 {[%clk 0:00:53.8]} 19. Qa4 {[%clk 0:01:11]} 19...
Rac8 {[%clk 0:00:50.6]} 20. d5 {[%clk 0:00:58.1]} 20... Ne5 {[%clk 0:00:47.9]}
21. f4 {[%clk 0:00:52.6]} 21... Nf3+ {[%clk 0:00:41.3]} 22. Bxf3 {[%clk
0:00:53.7]} 22... Bxf3 {[%clk 0:00:43.2]} 23. c4 {[%clk 0:00:55.1]} 23... Bxa1
{[%clk 0:00:34.2]} 24. Rxa1 {[%clk 0:00:57]} 24... Be4 {[%clk 0:00:24]} 25. Qb3
{[%clk 0:00:50.1]} 25... Qd7 {[%clk 0:00:21.5]} 26. Nb5 {[%clk 0:00:46.8]} 26...
e6 {[%clk 0:00:15.6]} 27. Nc3 {[%clk 0:00:29.8]} 27... exd5 {[%clk 0:00:14.9]}
28. Nxe4 {[%clk 0:00:30.1]} 28... dxe4 {[%clk 0:00:16.8]} 29. Rad1 {[%clk
0:00:30.6]} 29... Qe7 {[%clk 0:00:17.3]} 30. Rxd8+ {[%clk 0:00:30.5]} 30... Rxd8
{[%clk 0:00:19.2]} 31. Rd1 {[%clk 0:00:32.2]} 31... h5 {[%clk 0:00:19]} 32. Kf2
{[%clk 0:00:31.5]} 32... Rd6 {[%clk 0:00:17.7]} 33. Qc2 {[%clk 0:00:31.1]} 33...
Rxd1 {[%clk 0:00:12.1]} 34. Qxd1 {[%clk 0:00:32.3]} 34... Qe6 {[%clk 0:00:14]}
35. Qc2 {[%clk 0:00:24]} 35... Qh3 {[%clk 0:00:13.3]} 36. Kg1 {[%clk 0:00:24.5]}
36... Qe6 {[%clk 0:00:12.4]} 37. a4 {[%clk 0:00:24.4]} 37... Qc6 {[%clk
0:00:11.7]} 38. Kg2 {[%clk 0:00:20.9]} 38... Kf8 {[%clk 0:00:12]} 39. Qb3 {[%clk
0:00:22]} 39... Qd7 {[%clk 0:00:09.2]} 40. Qc2 {[%clk 0:00:22.6]} 40... Qe6
{[%clk 0:00:06.9]} 41. a5 {[%clk 0:00:22.3]} 41... Kg8 {[%clk 0:00:06.3]} 42.
axb6 {[%clk 0:00:23]} 42... axb6 {[%clk 0:00:08.2]} 43. Qb3 {[%clk 0:00:23.6]}
43... Qd6 {[%clk 0:00:08.5]} 44. Qb1 {[%clk 0:00:23.8]} 44... Qd2+ {[%clk
0:00:09.2]} 45. Kh3 {[%clk 0:00:24.3]} 45... Qxe3 {[%clk 0:00:11.1]} 46. Qxb6
{[%clk 0:00:24.5]} 46... Qd4 {[%clk 0:00:09.6]} 47. Qb8+ {[%clk 0:00:22.7]}
47... Kg7 {[%clk 0:00:11]} 48. Qe8 {[%clk 0:00:22.9]} 48... Qxc4 {[%clk
0:00:09.2]} 49. Qe5+ {[%clk 0:00:23.3]} 49... Kg8 {[%clk 0:00:10.2]} 50. Qe8+
{[%clk 0:00:23.9]} 50... Kh7 {[%clk 0:00:11.8]} 51. Kh4 {[%clk 0:00:23.1]} 51...
Qe6 {[%clk 0:00:11.7]} 52. Qxe6 {[%clk 0:00:18.6]} 52... fxe6 {[%clk 0:00:13.6]}
53. Kh3 {[%clk 0:00:17.8]} 53... c4 {[%clk 0:00:14.6]} 54. Kg2 {[%clk
0:00:19.4]} 54... c3 {[%clk 0:00:16.1]} 0-1

[Event "*** Titled Tuesday Blitz"]
[Site "Chess.com"]
[Date "2019.06.04"]
[Round "9"]
[White "Korchmar_Vasiliy"]
[Black "Bigfish1995"]
[Result "0-1"]
[WhiteElo "2792"]
[BlackElo "2965"]
[TimeControl "180+2"]
[EndTime "15:08:10 PDT"]
[Termination "Bigfish1995 won by resignation"]

1. d4 {[%clk 0:03:01.1]} 1... Nf6 {[%clk 0:03:01.2]} 2. c4 {[%clk 0:03:01.8]}
2... g6 {[%clk 0:03:02.1]} 3. Nc3 {[%clk 0:03:02.3]} 3... d5 {[%clk 0:03:03.5]}
4. Nf3 {[%clk 0:03:02.7]} 4... Bg7 {[%clk 0:03:04.2]} 5. Bf4 {[%clk 0:03:03.2]}
5... O-O {[%clk 0:03:04.4]} 6. e3 {[%clk 0:03:04.1]} 6... c5 {[%clk 0:03:03.9]}
7. dxc5 {[%clk 0:03:04.6]} 7... Ne4 {[%clk 0:03:02.8]} 8. Rc1 {[%clk 0:03:03.4]}
8... Nxc3 {[%clk 0:03:01.5]} 9. bxc3 {[%clk 0:03:03.9]} 9... Nd7 {[%clk
0:02:45.8]} 10. cxd5 {[%clk 0:02:54.9]} 10... Nxc5 {[%clk 0:02:46.3]} 11. Be2
{[%clk 0:02:38.7]} 11... Qa5 {[%clk 0:02:31.9]} 12. O-O {[%clk 0:02:17.9]} 12...
Qxa2 {[%clk 0:02:19.4]} 13. Be5 {[%clk 0:01:28.3]} 13... Bxe5 {[%clk 0:01:44.7]}
14. Nxe5 {[%clk 0:01:30.2]} 14... Bf5 {[%clk 0:01:45.5]} 15. Bc4 {[%clk
0:01:25.9]} 15... Qa5 {[%clk 0:01:38.7]} 16. Qd4 {[%clk 0:01:20.7]} 16... Qc7
{[%clk 0:01:31.6]} 17. Ba2 {[%clk 0:01:08.5]} 17... Rad8 {[%clk 0:01:17.8]} 18.
f3 {[%clk 0:01:06.4]} 18... Ne6 {[%clk 0:00:54.4]} 19. dxe6 {[%clk 0:00:58.6]}
19... Rxd4 {[%clk 0:00:52.1]} 20. exf7+ {[%clk 0:00:59.9]} 20... Kg7 {[%clk
0:00:50.8]} 21. cxd4 {[%clk 0:01:01.8]} 21... Qa5 {[%clk 0:00:49.5]} 22. Bc4
{[%clk 0:00:56.7]} 22... b5 {[%clk 0:00:46.8]} 23. Bd5 {[%clk 0:00:50.2]} 23...
Qd2 {[%clk 0:00:46.3]} 24. Rfe1 {[%clk 0:00:46.2]} 24... Rc8 {[%clk 0:00:39.2]}
25. Rcd1 {[%clk 0:00:40.8]} 25... Qb2 {[%clk 0:00:34.4]} 26. Bc6 {[%clk
0:00:37.1]} 26... Bc2 {[%clk 0:00:21.6]} 27. Ra1 {[%clk 0:00:27]} 27... Ba4
{[%clk 0:00:18.9]} 28. Kh1 {[%clk 0:00:18.9]} 28... Rf8 {[%clk 0:00:11.9]} 29.
Be8 {[%clk 0:00:17.7]} 29... a5 {[%clk 0:00:10.2]} 30. Nd7 {[%clk 0:00:15.2]}
30... Rxf7 {[%clk 0:00:06]} 31. Bxf7 {[%clk 0:00:17.1]} 31... Kxf7 {[%clk
0:00:07.9]} 32. Nc5 {[%clk 0:00:18.2]} 32... Bc2 {[%clk 0:00:07.5]} 33. Rxa5
{[%clk 0:00:16.7]} 33... Qc3 {[%clk 0:00:08.9]} 34. Raa1 {[%clk 0:00:17.7]}
34... b4 {[%clk 0:00:10.4]} 35. Ne4 {[%clk 0:00:10.3]} 35... Qc6 {[%clk
0:00:07.9]} 36. Nc5 {[%clk 0:00:11.4]} 36... b3 {[%clk 0:00:08.7]} 37. Ra7
{[%clk 0:00:09.4]} 37... Qb6 {[%clk 0:00:03.8]} 38. Rb7 {[%clk 0:00:10.5]} 38...
Qa5 {[%clk 0:00:05.3]} 39. Rg1 {[%clk 0:00:11.6]} 39... Qc3 {[%clk 0:00:06.4]}
40. Nd7 {[%clk 0:00:03.4]} 40... Qxe3 {[%clk 0:00:06]} 41. Ne5+ {[%clk
0:00:05.3]} 41... Ke6 {[%clk 0:00:07.3]} 42. Rb6+ {[%clk 0:00:06]} 42... Kd5
{[%clk 0:00:08.7]} 43. Rb5+ {[%clk 0:00:05]} 43... Kxd4 {[%clk 0:00:10]} 44.
Nc6+ {[%clk 0:00:03.8]} 44... Kc4 {[%clk 0:00:10.5]} 45. Rb8 {[%clk 0:00:04.6]}
45... Kc3 {[%clk 0:00:10.8]} 46. Na5 {[%clk 0:00:04]} 46... Qc5 {[%clk
0:00:08.1]} 47. Ra8 {[%clk 0:00:02.6]} 47... b2 {[%clk 0:00:08.6]} 48. Nb7
{[%clk 0:00:03.9]} 48... Qb6 {[%clk 0:00:09.3]} 49. Rc8+ {[%clk 0:00:04.6]}
49... Kd2 {[%clk 0:00:10.7]} 50. Rd8+ {[%clk 0:00:03.7]} 50... Ke2 {[%clk
0:00:12]} 51. Rd7 {[%clk 0:00:02.6]} 51... Qxg1+ {[%clk 0:00:12.6]} 0-1